lending/lending_fUSD_20240605
["ID","MTS","AMOUNT","RATE_DAILY","PERIOD"]
[328592028,1717583229156,-155.0,0.0001688,2]
[328592029,1717583229176,-296.58359376,0.00016881,2]
[328592030,1717583229196,-645.27733347,0.00016882,2]
[328592031,1717583229216,-174.79546801,0.00016884,2]
[328592032,1717583229236,-14595.2579,0.00017006,2]
[328592033,1717583229442,-2212.13842715,0.000192,2]
[328592034,1717583229463,-11647.34,0.00019452,2]
[328592035,1717583229495,-499.99,0.00019452,2]
[328592036,1717583229520,-1341.49,0.00019452,2]
[328592037,1717583229542,-150.99,0.00019452,2]
[328592038,1717583229565,-661.37,0.00019452,2]
[328592039,1717583229588,-226.57668191,0.000201,2]
[328592040,1717583229611,-505.44,0.00024374,2]
[328592041,1717583229633,-155.33,0.00024384,2]
[328592042,1717583229655,-929.52174178,0.00025,2]
[328592043,1717583229676,-224.99281109,0.00025,2]
[328592044,1717583229701,-325.71492009,0.00025283,2]
[328592045,1717583229722,-168.65,0.00025985,2]
[328592046,1717583229745,-200.0,0.00026009,2]
[328592047,1717583229767,-163.76,0.00026196,2]
[328592048,1717583229790,-1000.0,0.00026303,2]
[328592049,1717583229812,-250.0,0.00026326,2]
[328592050,1717583229834,-250.0,0.00026357,2]
[328592051,1717583229860,-164.6,0.00026383,2]
[328592052,1717583229883,-250.0,0.00026609,2]
[328592053,1717583229904,-505.44,0.00026638,2]
[328592054,1717583229926,-164.6,0.00026726,2]
[328592055,1717583229946,-183.37,0.00026902,2]
[328592056,1717583229966,-176.42,0.00026965,2]
[328592057,1717583229988,-423.57,0.00026965,2]
[328592058,1717583230010,-164.6,0.0002707,2]
[328592059,1717583230031,-2647.2392,0.000274,2]
[328592060,1717583230053,-164.6,0.00027414,2]
[328592061,1717583230074,-412.45466168,0.00027629,2]
[328592062,1717583230094,-153.06,0.00027638,2]
[328592063,1717583230114,-150.0,0.00027638,2]
[328592064,1717583230137,-164.6,0.00027757,2]
[328592065,1717583230164,-1717.4198,0.00027821,2]
[328592066,1717583230187,-7170.2298,0.00027834,2]
[328592067,1717583230209,-29009.318319,0.00027915,2]
[328592068,1717583230231,-1231.26260483,0.00027919,2]
[328592069,1717583230254,-2198.14097977,0.00027919,2]
[328592070,1717583230276,-1094.32481664,0.00027919,2]
[328592071,1717583230297,-1040.91551464,0.00027919,2]
[328592072,1717583230318,-161.27128855,0.00027919,2]
[328592073,1717583230339,-415.60857681,0.0002792,2]
[328592074,1717583230361,-167.35944434,0.0002792,2]
[328592075,1717583230384,-266.47047598,0.0002792,2]
[328592076,1717583230407,-190.70283289,0.0002792,2]
[328592077,1717583230429,-240.14599621,0.0002792,2]
[328592078,1717583230451,-1597.63779666,0.0002792,2]
[328592079,1717583230472,-952.54714582,0.0002792,2]
[328592080,1717583230494,-446.60502179,0.00027921,2]
[328592081,1717583230515,-1202.87340608,0.00027921,2]
[328592082,1717583230536,-500.0,0.00027921,2]
[328592083,1717583230559,-2000.0,0.00027921,2]
[328592084,1717583230580,-200.0,0.00027921,2]
[328592085,1717583230601,-2000.0,0.00027921,2]
[328592086,1717583230621,-200.0,0.00027921,2]
[328592087,1717583230643,-2000.0,0.00027921,2]
[328592088,1717583230663,-200.0,0.00027921,2]
[328592089,1717583230684,-2492.8605,0.00027921,2]
[328592090,1717583230714,-592.3358,0.00027934,2]
[328592091,1717583230737,-500.0,0.00027936,2]
[328592092,1717583230759,-7527.02870314,0.00027998,2]
[328592093,1717583230782,-468.50367616,0.00028,2]
[328592094,1717583230804,-164.99574182,0.00028034,2]
[328592095,1717583230826,-3286.97999918,0.00028034,2]
[328592096,1717583230849,-472.28322406,0.00028036,7]
[328592097,1717583230872,-891.13067125,0.00028036,30]
[328592098,1717583230893,-2355.953386,0.00028036,2]
[328592099,1717583230915,-176.335226,0.00028036,2]
[328592100,1717583230937,-196.139912,0.00028036,2]
[328592101,1717583230958,-168.227442,0.00028036,2]
[328592102,1717583230978,-172.941094,0.00028036,2]
[328592103,1717583230998,-168.962269,0.00028036,2]
[328592104,1717583231018,-724.689117,0.00028036,2]
[328592105,1717583231039,-57.10293291,0.00028036,2]
[328592106,1717583233118,-1838.46058909,0.00028036,2]
[328592107,1717583233139,-872.63,0.00028082,2]
[328592108,1717583233160,-416.97,0.00028082,2]
[328592109,1717583233180,-872.63,0.00028082,2]
[328592110,1717583233200,-416.97,0.00028082,2]
[328592111,1717583233221,-416.97,0.00028082,2]
[328592112,1717583233241,-872.63,0.00028082,2]
[328592113,1717583233261,-416.57,0.00028082,2]
[328592114,1717583233280,-871.79,0.00028082,2]
[328592115,1717583233302,-150.0,0.00028186,2]
[328592116,1717583233322,-150.0,0.00028186,2]
[328592117,1717583233341,-150.0,0.00028186,2]
[328592118,1717583233363,-307.58,0.00028186,2]
[328592119,1717583233383,-300.0,0.000282,2]
[328592120,1717583233404,-200.0,0.00028265,2]
[328592121,1717583233424,-500.0,0.00028265,2]
[328592122,1717583233444,-200.0,0.00028265,2]
[328592123,1717583233464,-165.0,0.0002837,16]
[328592124,1717583233484,-2355.953386,0.00028387,2]
[328592125,1717583233504,-724.689117,0.00028387,2]
[328592126,1717583233525,-1895.563522,0.00028387,2]
[328592127,1717583233545,-869.92,0.0002839,3]
[328592128,1717583233568,-2743.0,0.000284,2]
[328592129,1717583233588,-182.2596,0.000284,2]
[328592130,1717583233608,-497.8815,0.000284,2]
[328592131,1717583233630,-193.99,0.000284,2]
[328592132,1717583233651,-6754.5911,0.000284,2]
[328592133,1717583233674,-1787.31198292,0.000284,2]
[328592134,1717583233699,-1000.0,0.000284,2]
[328592135,1717583233720,-1500.0,0.000284,2]
[328592136,1717583233744,-828.70186012,0.000284,2]
[328592137,1717583233765,-2500.0,0.000284,2]
[328592138,1717583233790,-500.0,0.00028498,2]
[328592139,1717583233811,-180.49727056,0.00028499,2]
[328592140,1717583233831,-5397.69726296,0.000285,2]
[328592141,1717583234158,-27168.89893704,0.000285,2]
[328592142,1717583234182,-58477.0816,0.000285,2]
[328592143,1717583234203,-351.2749,0.000285,2]
[328592144,1717583234225,-168.227442,0.00028503,2]
[328592145,1717583234257,-1787.31198292,0.00028567,2]
[328592146,1717583234438,-828.70186007,0.00028567,2]
[328592147,1717583234459,-300.0,0.00028571,2]
[328592148,1717583234479,-164.02,0.00028589,2]
[328592149,1717583234500,-450.64469433,0.00028598,2]
[328592150,1717583234520,-1815.00437002,0.00028598,2]
[328592151,1717583234541,-453.15310057,0.00028598,2]
[328592152,1717583234562,-2076.02669299,0.00028598,2]
[328592153,1717583234582,-353.96696625,0.00028598,10]
[328592154,1717583234602,-1050.47332739,0.00028598,2]
[328592155,1717583234622,-2025.06645135,0.00028598,2]
[328592156,1717583234641,-9766.96412666,0.00028599,2]
[328592157,1717583234662,-19686.73798443,0.000287,2]
[328592158,1717583234685,-1787.31198292,0.00028733,2]
[328592159,1717583234709,-828.70186007,0.00028733,2]
[328592160,1717583234729,-176.335226,0.00028737,2]
[328592161,1717583234751,-2355.953386,0.00028737,2]
[328592162,1717583234771,-724.689117,0.00028737,2]
[328592163,1717583234793,-1895.563522,0.00028737,2]
[328592164,1717583234817,-500.0,0.00028752,2]
[328592165,1717583234838,-874.6654518,0.000288,2]
[328592166,1717583234859,-180.0,0.00028815,2]
[328592167,1717583234879,-327.31230741,0.00028842,2]
[328592168,1717583234900,-151.0,0.00028885,7]
[328592169,1717583234920,-152.405214,0.00028885,7]
[328592170,1717583234941,-339.65155489,0.00028885,2]
[328592171,1717583234961,-488.0,0.000289,13]
[328592172,1717583234980,-345.0,0.000289,2]
[328592173,1717583235001,-49768.41498737,0.000289,2]
[328592174,1717583254132,-6603.84636972,0.000221,5]
[328592176,1717583432229,-155.0,0.00017254,2]
[328592177,1717583432239,-2366.9955033,0.00017254,2]
[328592178,1717583432248,-481.6174682,0.00017255,2]
[328592179,1717583432257,-1079.39285186,0.0002,2]
[328592180,1717583432269,-2112.18078932,0.0002,2]
[328592181,1717583432281,-702.4556524,0.0002,2]
[328592182,1717583432292,-461.4915683,0.0002,2]
[328592183,1717583432302,-16.70405,0.0002,2]
[328592184,1717583432314,-1963.0385213,0.0002,2]
[328592185,1717583432325,-178.29,0.00024384,2]
[328592186,1717583432335,-5125.0,0.000247,5]
[328592188,1717583432345,-338.52455086,0.0002616,2]
[328592190,1717583432354,-250.0,0.00026161,2]
[328592191,1717583432363,-200.0,0.00026876,2]
[328592192,1717583432373,-282.04,0.00027229,2]
[328592193,1717583432383,-354.87,0.00027397,2]
[328592194,1717583432392,-250.0,0.00027579,2]
[328592195,1717583432402,-150.0,0.00027638,2]
[328592196,1717583432411,-10436.70955254,0.00027921,2]
[328592197,1717583432421,-155.97845175,0.00028009,2]
[328592198,1717583432431,-154.10727362,0.00028076,2]
[328592199,1717583432441,-152.84684419,0.00028127,2]
[328592200,1717583432451,-154.10727362,0.00028174,2]
[328592201,1717583432460,-164.49187381,0.00028176,2]
[328592202,1717583432473,-6740.61718876,0.000283,2]
[328592203,1717583432483,-155.24587919,0.00028305,2]
[328592204,1717583432493,-154.10727362,0.00028319,2]
[328592205,1717583432502,-280.81406261,0.0002832,2]
[328592206,1717583432512,-164.02,0.0002839,2]
[328592209,1717583432522,-561.9,0.0002839,10]
[328592212,1717583432531,-154.10727362,0.00028395,2]
[328592215,1717583432541,-29184.1932,0.000284,2]
[328592218,1717583432550,-10260.02494391,0.000284,2]
[328592220,1717583432562,-9069.68526518,0.000284,2]
[328592222,1717583432573,-486.70279003,0.000284,2]
[328592224,1717583432586,-530.14499983,0.000284,2]
[328592227,1717583432597,-5186.31604866,0.000284,2]
[328592229,1717583432609,-53519.96565239,0.000284,2]
[328592231,1717583432619,-113804.12044003,0.000284,2]
[328592241,1717583432710,-4210.61935997,0.000284,2]
[328592243,1717583432722,-867.6847,0.000284,2]
[328592245,1717583432731,-1707.84161844,0.000284,2]
[328592247,1717583432743,-840.52331929,0.000284,2]
[328592258,1717583438021,-226.57668191,0.000201,2]
[328592259,1717583438031,-1587.53857064,0.00025,10]
[328592261,1717583438329,-2440.87768177,0.00025,10]
[328592262,1717583438339,-468.50367616,0.00028,2]
[328592263,1717583438349,-97451.63506227,0.000284,2]
[328592264,1717583438359,-155.35194854,0.00028454,2]
[328592265,1717583438369,-6740.61718875,0.00028478,2]
[328592266,1717583438379,-152.84684419,0.00028539,2]
[328592267,1717583438389,-500.0,0.000286,10]
[328592268,1717583438398,-155.2626538,0.00028603,2]
[328592269,1717583438408,-150.71905691,0.00028616,2]
[328592270,1717583438418,-155.66261241,0.0002864,2]
[328592271,1717583438428,-467.95908505,0.00028655,2]
[328592272,1717583438438,-6740.61718875,0.00028656,2]
[328592273,1717583438448,-164.49187381,0.00028692,2]
[328592274,1717583438458,-1000.0,0.000287,10]
[328592275,1717583438468,-19618.76557597,0.000287,2]
[328592276,1717583438478,-226.42628252,0.00028755,2]
[328592277,1717583438488,-150.71905691,0.00028763,2]
[328592278,1717583438498,-155.35194854,0.00028767,2]
[328592279,1717583438507,-155.35194854,0.00028772,2]
[328592280,1717583438518,-1500.0,0.000288,10]
[328592281,1717583438528,-5916.969507,0.000288,2]
[328592282,1717583438538,-6740.61718875,0.00028833,2]
[328592283,1717583438547,-500.0,0.0002884,2]
[328592284,1717583438557,-500.0,0.0002884,2]
[328592285,1717583438567,-500.0,0.0002884,2]
[328592286,1717583438577,-500.0,0.0002884,2]
[328592287,1717583438587,-500.0,0.0002884,2]
[328592288,1717583438597,-353.0637,0.0002884,2]
[328592289,1717583438607,-1000.0,0.0002884,2]
[328592290,1717583438617,-1000.0,0.0002884,2]
[328592291,1717583438627,-1000.0,0.0002884,2]
[328592292,1717583438636,-1000.0,0.0002884,2]
[328592293,1717583438646,-1000.0,0.0002884,2]
[328592294,1717583438656,-1000.0,0.0002884,2]
[328592295,1717583438666,-1000.0,0.0002884,2]
[328592296,1717583438675,-1000.0,0.0002884,2]
[328592297,1717583438685,-1000.0,0.0002884,2]
[328592298,1717583438695,-1000.0,0.0002884,2]
[328592299,1717583438705,-456.7867,0.0002884,2]
[328592300,1717583438716,-150.71905691,0.0002886,2]
[328592301,1717583438725,-152.84684419,0.00028877,2]
[328592302,1717583438735,-24201.8008608,0.0002888,2]
[328592303,1717583438744,-11509.7571,0.0002888,2]
[328592304,1717583438941,-1302.1643,0.0002888,2]
[328592305,1717583438952,-10839.1620753,0.00028897,2]
[328592306,1717583438961,-174227.9002741,0.00028897,2]
[328592307,1717583438971,-151.0,0.00028897,7]
[328592308,1717583438981,-353.96696625,0.00028898,10]
[328592309,1717583438991,-156.26845816,0.00028898,2]
[328592310,1717583439000,-2190.54122498,0.00028899,2]
[328592311,1717583439009,-6870.3171784,0.00028899,5]
[328592312,1717583439061,-16683.99466517,0.00028899,5]
[328592313,1717583439072,-70947.43994785,0.000289,2]
[328592314,1717583439082,-160.0,0.000289,2]
[328592315,1717583439092,-151.0,0.000289,7]
[328592316,1717583439102,-150.0,0.000289,2]
[328592317,1717583439112,-151.0,0.000289,7]
[328592318,1717583439122,-151.0,0.000289,7]
[328592319,1717583439132,-2000.0,0.000289,10]
[328592320,1717583439143,-14743.79793212,0.000289,2]
[328592321,1717583439153,-600.81299312,0.000289,2]
[328592322,1717583439163,-1202.87340608,0.000289,2]
[328592323,1717583439173,-500.0,0.000289,2]
[328592324,1717583439182,-235.203415,0.000289,7]
[328592325,1717583439192,-231.27033,0.000289,2]
[328592326,1717583439202,-1500.0,0.000289,2]
[328592327,1717583439212,-150.0,0.000289,6]
[328592328,1717583439222,-151.0,0.000289,7]
[328592329,1717583439232,-150.0,0.000289,6]
[328592330,1717583439242,-151.0,0.000289,7]
[328592331,1717583439252,-505.44,0.00028902,2]
[328592332,1717583439262,-13519.9513637,0.00028917,2]
[328592333,1717583439271,-422.0,0.00028942,2]
[328592334,1717583439282,-164.49187381,0.0002896,2]
[328592335,1717583439292,-155.97845175,0.0002897,2]
[328592336,1717583439302,-168.227442,0.00028971,2]
[328592337,1717583439311,-250.1967201,0.00028975,2]
[328592338,1717583439321,-152.13,0.00028975,2]
[328592339,1717583439331,-151.0,0.0002898,7]
[328592340,1717583439340,-208.72501019,0.00028984,2]
[328592341,1717583439350,-5889.05435153,0.00028984,2]
[328592342,1717583439360,-229.220673,0.00028985,7]
[328592343,1717583439370,-151.0,0.00028985,7]
[328592344,1717583439379,-34869.45573036,0.00028986,7]
[328592345,1717583439407,-1080.38053775,0.00028986,7]
[328592346,1717583439419,-408.66224937,0.00028986,7]
[328592347,1717583439431,-63177.69633032,0.00028986,7]
[328592348,1717583439441,-156.46370926,0.00028986,4]
[328592349,1717583439451,-179.98978856,0.00028987,2]
[328592350,1717583439462,-613.6302,0.00028987,2]
[328592351,1717583439472,-5000.0,0.00029,2]
[328592352,1717583439483,-1487.32527952,0.00029,2]
[328592353,1717583439493,-12703.79393893,0.00029,3]
[328592354,1717583439502,-4166.39963549,0.00029,2]
[328592355,1717583439512,-21850.49946248,0.00029,2]
[328592356,1717583439522,-2000.0,0.00029,7]
[328592357,1717583439532,-280.25415588,0.00029,2]
[328592358,1717583439541,-151.0,0.00029,7]
[328592359,1717583439551,-348.04465327,0.00029,2]
[328592360,1717583439561,-348.04465327,0.00029,2]
[328592361,1717583439571,-348.04465327,0.00029,2]
[328592362,1717583439580,-348.04465327,0.00029,2]
[328592363,1717583439590,-348.04465327,0.00029,2]
[328592364,1717583439600,-348.04465327,0.00029,2]
[328592365,1717583439609,-348.04465327,0.00029,2]
[328592366,1717583439619,-348.04465327,0.00029,2]
[328592367,1717583439630,-348.04465327,0.00029,2]
[328592368,1717583439639,-348.04465327,0.00029,2]
[328592369,1717583439649,-348.04465327,0.00029,2]
[328592370,1717583439659,-348.04465327,0.00029,2]
[328592371,1717583439669,-348.04465327,0.00029,2]
[328592372,1717583439679,-348.04465327,0.00029,2]
[328592373,1717583439688,-348.04465327,0.00029,2]
[328592374,1717583439698,-348.04465327,0.00029,2]
[328592375,1717583439708,-348.04465327,0.00029,2]
[328592376,1717583439717,-348.04465327,0.00029,2]
[328592377,1717583439728,-348.04465327,0.00029,2]
[328592378,1717583439738,-348.04465327,0.00029,2]
[328592379,1717583439748,-348.04465327,0.00029,2]
[328592380,1717583439757,-348.04465327,0.00029,2]
[328592381,1717583439771,-348.04465327,0.00029,2]
[328592382,1717583439781,-348.04465327,0.00029,2]
[328592383,1717583439791,-348.04465327,0.00029,2]
[328592384,1717583439802,-348.04465327,0.00029,2]
[328592385,1717583439813,-348.04465327,0.00029,2]
[328592386,1717583439822,-348.04465327,0.00029,2]
[328592387,1717583439832,-348.04465327,0.00029,2]
[328592388,1717583439843,-348.04465327,0.00029,2]
[328592389,1717583439853,-348.04465327,0.00029,2]
[328592390,1717583439864,-348.04465327,0.00029,2]
[328592391,1717583439874,-348.04465327,0.00029,2]
[328592392,1717583439883,-348.04465327,0.00029,2]
[328592393,1717583439893,-348.04465327,0.00029,2]
[328592394,1717583439903,-348.04465327,0.00029,2]
[328592395,1717583439913,-348.04465327,0.00029,2]
[328592396,1717583439923,-348.04465327,0.00029,2]
[328592397,1717583439934,-348.04465327,0.00029,2]
[328592398,1717583439944,-348.04465327,0.00029,2]
[328592399,1717583439954,-348.04465327,0.00029,2]
[328592400,1717583439964,-348.04465327,0.00029,2]
[328592402,1717583439975,-348.04465327,0.00029,2]
[328592403,1717583439987,-348.04465327,0.00029,2]
[328592405,1717583439997,-348.04465327,0.00029,2]
[328592406,1717583440008,-348.04465327,0.00029,2]
[328592407,1717583440019,-348.04465327,0.00029,2]
[328592408,1717583440029,-348.04465327,0.00029,2]
[328592409,1717583440039,-348.04465327,0.00029,2]
[328592410,1717583440049,-348.04465327,0.00029,2]
[328592411,1717583440059,-348.04465327,0.00029,2]
[328592412,1717583440069,-348.04465327,0.00029,2]
[328592413,1717583440080,-348.04465327,0.00029,2]
[328592414,1717583440090,-152.188,0.00029,2]
[328592415,1717583440100,-817.746,0.00029,2]
[328592416,1717583440111,-446.0,0.00029,2]
[328592417,1717583440121,-167.324,0.00029,2]
[328592418,1717583440132,-2426.215,0.00029,2]
[328592419,1717583440143,-1243.1047357,0.00029,2]
[328592420,1717583440158,-79.4122643,0.00029,2]
[328592421,1717583440168,-250.375,0.00029,2]
[328592422,1717583440178,-219.0,0.00029,2]
[328592423,1717583440189,-205.351,0.00029,2]
[328592424,1717583440199,-545.0,0.00029,2]
[328592425,1717583440210,-3192.726,0.00029,2]
[328592426,1717583440220,-1074.087,0.00029,2]
[328592427,1717583440232,-173.25656806,0.00029008,2]
[328592428,1717583440242,-6740.61718875,0.00029011,15]
[328592429,1717583440252,-339.65155485,0.00029031,2]
[328592430,1717583440263,-157.060518,0.00029048,3]
[328592431,1717583440273,-154.025,0.00029056,2]
[328592432,1717583440283,-164.49187381,0.00029064,2]
[328592433,1717583440294,-152.036,0.00029071,2]
[328592434,1717583440304,-150.0,0.00029071,2]
[328592435,1717583440314,-264.847,0.00029071,2]
[328592436,1717583440323,-200.0,0.00029071,2]
[328592437,1717583440335,-325.99959221,0.00029075,2]
[328592438,1717583440346,-152.13,0.00029077,2]
[328592439,1717583440357,-21850.49946239,0.00029082,2]
[328592440,1717583440368,-151.0,0.00029087,7]
[328592441,1717583440378,-108730.97097767,0.00029087,13]
[328592442,1717583440390,-1667.21481068,0.00029087,13]
[328592443,1717583440402,-37540.75734402,0.00029087,13]
[328592444,1717583440433,-348.04465327,0.00029,2]
[328592445,1717583440444,-33392.93863705,0.00029087,13]
[328592471,1717583441097,-348.04465327,0.00029,2]
[328592472,1717583441107,-348.04465327,0.00029,2]
[328592473,1717583441117,-348.04465327,0.00029,2]
[328592474,1717583441127,-348.04465327,0.00029,2]
[328592475,1717583441137,-137.61194182,0.00029,2]
[328592476,1717583441263,-210.43271145,0.00029,2]
[328592477,1717583441273,-348.04465327,0.00029,2]
[328592478,1717583441284,-348.04465327,0.00029,2]
[328592479,1717583441293,-348.04465327,0.00029,2]
[328592480,1717583441303,-348.04465327,0.00029,2]
[328592481,1717583441313,-21.23857547,0.00029,2]
[328592482,1717583442586,-326.8060778,0.00029,2]
[328592483,1717583442595,-348.04465327,0.00029,2]
[328592484,1717583442605,-348.04465327,0.00029,2]
[328592485,1717583442614,-348.04465327,0.00029,2]
[328592486,1717583442623,-348.04465327,0.00029,2]
[328592487,1717583442633,-348.04465327,0.00029,2]
[328592488,1717583442642,-348.04465327,0.00029,2]
[328592489,1717583442652,-348.04465327,0.00029,2]
[328592490,1717583442662,-348.04465327,0.00029,2]
[328592491,1717583442671,-348.04465327,0.00029,2]
[328592492,1717583442681,-348.04465327,0.00029,2]
[328592493,1717583442691,-348.04465327,0.00029,2]
[328592494,1717583442701,-348.04465327,0.00029,2]
[328592495,1717583442710,-348.04465327,0.00029,2]
[328592496,1717583442721,-348.04465327,0.00029,2]
[328592497,1717583442732,-60515.96719104,0.00029087,13]
[328592506,1717583444489,-208.72501019,0.00028984,2]
[328592508,1717583444499,-338.52455086,0.00028999,2]
[328592509,1717583444508,-210.94815293,0.00029,2]
[328592510,1717583444520,-137.09650034,0.00029,2]
[328592511,1717583444529,-251.27187616,0.00029,2]
[328592512,1717583444541,-96.77277711,0.00029,2]
[328592513,1717583444550,-1544.23867723,0.00029087,13]
[328592514,1717583444562,-3337.5,0.00029087,13]
[328592515,1717583444573,-2203.81028304,0.00029087,13]
[328592516,1717583444584,-2110.34879569,0.00029087,13]
[328592517,1717583444596,-500.0,0.00029087,13]
[328592518,1717583444655,-3264.70230901,0.00028984,2]
[328592519,1717583444823,-500.0,0.00028984,2]
[328592520,1717583444835,-292.5,0.00028984,2]
[328592527,1717583446274,-1831.85204252,0.00028984,2]
[328592528,1717583446283,-67.29795748,0.00029068,2]
[328592529,1717583446295,-1402.70204252,0.00029068,2]
[328592530,1717583446303,-11910.83724055,0.00029087,13]
[328592533,1717583447120,-201253.35312423,0.00029087,13]
[328592534,1717583447310,-3219.5463672,0.00029087,13]
[328592535,1717583447334,-11119.5466037,0.00029087,13]
[328592536,1717583447362,-2366.9955033,0.00028999,2]
[328592537,1717583447373,-3589.52898667,0.00029087,13]
[328592538,1717583447385,-1604.0647606,0.00029087,13]
[328592539,1717583447396,-3115.49833481,0.00029087,13]
[328592540,1717583447407,-415.56400003,0.00029087,13]
[328592541,1717583454743,-215.3686663,0.0003,120]
[328592542,1717583623851,5000.0,0.00014,2]
[328592543,1717583623881,8710.0,0.00014,2]
[328592544,1717583623912,553531.73685018,0.00014,2]
[328592552,1717584436140,-296.58359376,0.00017259,2]
[328592553,1717584436163,-226.57668191,0.000201,2]
[328592554,1717584436181,-1890.65397392,0.0002087,7]
[328592555,1717584436203,-560.44,0.0002179,2]
[328592556,1717584436222,-643.41512651,0.000219,2]
[328592557,1717584436241,-207.53839082,0.000221,2]
[328592558,1717584436260,-4746.23061546,0.000229,5]
[328592559,1717584436278,-417.77,0.00023488,2]
[328592560,1717584436297,-353.96696625,0.00023598,10]
[328592561,1717584436316,-11109.83910787,0.000236,2]
[328592566,1717584567128,-273.83475148,0.00023598,2]
[328592567,1717584567153,-353.96696625,0.00023599,10]
[328592568,1717584567176,-2286.17408227,0.000236,2]
[328592610,1717584638309,-353.96696625,0.00023599,10]
[328592611,1717584638318,-1197.09953413,0.000236,2]
[328592612,1717584638341,-254.31053089,0.000236,2]
[328592613,1717584638618,-7517.43408782,0.000236,2]
[328592616,1717584638630,-538.18550706,0.000236,2]
[328592650,1717584641893,-7006.44231481,0.000236,2]
[328592752,1717584642962,-92698.45529894,0.000236,2]
[328592765,1717584643623,-3696.19603838,0.000236,2]
[328592766,1717584643635,-75934.82947556,0.000236,2]
[328592767,1717584643645,-2000.0,0.00023812,3]
[328592768,1717584643655,-163.76,0.00023937,2]
[328592769,1717584643666,-7293.74070501,0.00024,3]
[328592770,1717584643675,-250.0,0.00024008,2]
[328592771,1717584643685,-150.0,0.00024008,2]
[328592772,1717584643694,-11509.52,0.00024009,2]
[328592773,1717584643704,-250.0,0.00024027,2]
[328592774,1717584643714,-560.44,0.00024054,2]
[328592775,1717584643723,-591.07,0.00024152,2]
[328592776,1717584643734,-169.83,0.00024384,2]
[328592777,1717584643743,-194.83,0.00024384,2]
[328592778,1717584643753,-200.0,0.000247,9]
[328592779,1717584643763,-400.0,0.000247,9]
[328592780,1717584643772,-5097.03418045,0.00024798,2]
[328592781,1717584643783,-5097.03418044,0.00024798,2]
[328592782,1717584643793,-3057.48608299,0.00024799,2]
[328592783,1717584643802,-3057.48608297,0.00024799,2]
[328592784,1717584643812,-500.0,0.000248,9]
[328592785,1717584643822,-800.0,0.000248,9]
[328592786,1717584643832,-700.0,0.000249,9]
[328592787,1717584643842,-1300.0,0.000249,9]
[328592788,1717584643852,-327.61841013,0.00024987,2]
[328592789,1717584643862,-265.73614775,0.00024987,2]
[328592790,1717584643873,-1000.0,0.00024987,2]
[328592791,1717584643883,-227.90856439,0.0002499,2]
[328592792,1717584643892,-152.0,0.0002499,2]
[328592793,1717584643902,-152.0,0.0002499,2]
[328592794,1717584643912,-152.0,0.0002499,2]
[328592795,1717584643921,-152.0,0.0002499,2]
[328592796,1717584643931,-152.0,0.0002499,2]
[328592797,1717584643940,-152.0,0.0002499,2]
[328592798,1717584643951,-152.0,0.0002499,2]
[328592799,1717584643961,-152.0,0.0002499,2]
[328592800,1717584643970,-500.0,0.00024999,2]
[328592801,1717584643981,-508.33070691,0.00024999,2]
[328592802,1717584643990,-478.87858477,0.00024999,2]
[328592803,1717584644000,-217.85601724,0.00024999,2]
[328592804,1717584644009,-177096.92614322,0.00025,13]
[328592805,1717584644838,-8308.58333916,0.00025,13]
[328592833,1717584646416,-276.31199994,0.00025,13]
[328592969,1717585755187,-1900.16906214,0.00017259,2]
[328592970,1717585755210,-226.57668191,0.000201,2]
[328592971,1717585755232,-567.58,0.00021984,2]
[328592972,1717585755252,-150.0,0.00023865,2]
[328592973,1717585755273,-11519.52,0.00023955,2]
[328592974,1717585755293,-325.33,0.00023955,2]